[Event "FIDE Womens Grand Prix 2019-20"]
[Site "Skolkovo"]
[Date "2019.09.20"]
[Round "9.3"]
[White "Harika, Dronavalli"]
[Black "Paehtz, Elisabeth"]
[Result "1/2-1/2"]
[ECO "B53"]
[WhiteElo "2503"]
[BlackElo "2479"]
[Annotator "ChessBase"]
[PlyCount "50"]
[EventDate "2019.09.11"]
[EventType "tourn"]
[EventCountry "RUS"]
[SourceTitle "playchess.com"]
[Source "ChessBase"]
[SourceQuality "1"]
[TimeControl "40/5400+30:1800+30"]

1. e4 {[%emt 0:00:04]} c5 {[%emt 0:00:00]} 2. Nf3 {[%emt 0:00:08]} d6 {[%emt 0:00:00]} 3. d4 {[%emt 0:00:08]} cxd4 {[%emt 0:00:00]} 4. Qxd4 {[%emt 0:00:06]} Nc6 {[%emt 0:01:05]} 5. Qe3 {[%emt 0:00:42]} Nf6 {[%emt 0:00:32]} 6. Be2 {[%emt 0:00:51]} e6 {[%emt 0:02:29]} 7. O-O {[%emt 0:03:56]} Be7 {[%emt 0:00:58]} 8. c4 {[%emt 0:00:34]} O-O {[%emt 0:01:17]} 9. Rd1 {[%emt 0:03:25]} Qc7 {[%emt 0:02:38]} 10. Nc3 {[%emt 0:09:10]} b6 {[%emt 0:15:49]} 11. h3 {[%emt 0:01:47]} Bb7 {[%emt 0:01:15]} 12. b3 {[%emt 0:04:40]} Rad8 {[%emt 0:06:40]} 13. Bb2 {[%emt 0:11:20]} Rfe8 {[%emt 0:01:56]} 14. Rd2 {[%emt 0:02:28]} Qb8 {[%emt 0:02:49]} 15. Rad1 {[%emt 0:02:11]} Ba8 {[%emt 0:03:12]} 16. Bf1 {[%emt 0:11:06]} h6 {[%emt 0:02:03]} 17. Qf4 {[%emt 0:08:27]} Nh5 {[%emt 0:05:51]} 18. Qg4 {[%emt 0:01:54]} Nf6 {[%emt 0:00:02]} 19. Qf4 {[%emt 0:00:46]} Nh5 {[%emt 0:00:04]} 20. Qe3 {[%emt 0:03:42]} Nf6 {[%emt 0:00:08]} 21. Ba3 {[%emt 0:03:49]} a6 {[%emt 0:09:07]} 22. Bb2 {[%emt 0:02:47]} Nd7 {[%emt 0:04:09]} 23. Ba3 {[%emt 0:01:21]} Nf6 {[%emt 0:00:05]} 24. Bb2 {[%emt 0:01:18]} Nd7 {[%emt 0:00:05]} 25. Ba3 {[%emt 0:02:52]} Nf6 1/2-1/2

[Event "FIDE Womens Grand Prix 2019-20"]
[Site "Skolkovo"]
[Date "2019.09.20"]
[Round "9.5"]
[White "Kashlinskaya, Alina"]
[Black "Cramling, Pia"]
[Result "1-0"]
[ECO "E38"]
[WhiteElo "2487"]
[BlackElo "2487"]
[Annotator "ChessBase"]
[PlyCount "87"]
[EventDate "2019.09.11"]
[EventType "tourn"]
[EventCountry "RUS"]
[SourceTitle "playchess.com"]
[Source "ChessBase"]
[SourceQuality "1"]
[TimeControl "40/5400+30:1800+30"]

1. d4 {[%emt 0:00:00]} Nf6 {[%emt 0:00:00]} 2. c4 {[%emt 0:00:00]} e6 {[%emt 0:00:00]} 3. Nc3 {[%emt 0:00:00]} Bb4 {[%emt 0:00:00]} 4. Qc2 {[%emt 0:00:00]} c5 {[%emt 0:00:28]} 5. dxc5 {[%emt 0:00:12]} Bxc5 {[%emt 0:00:18]} 6. Nf3 {[%emt 0:00:40]} Qc7 {[%emt 0:00:20]} 7. Bg5 {[%emt 0:08:44]} a6 {[%emt 0:00:47]} 8. e3 {[%emt 0:16:04]} Be7 {[%emt 0:02:01]} 9. Be2 {[%emt 0:01:05]} d6 {[%emt 0:01:41]} 10. O-O {[%emt 0:01:26]} h6 {[%emt 0:04:42]} 11. Bh4 {[%emt 0:04:58]} Nbd7 {[%emt 0:06:25]} 12. Rad1 {[%emt 0:05:36]} b6 {[%emt 0:06:59]} 13. Rd2 {[%emt 0:01:59]} Bb7 {[%emt 0:03:04]} 14. Rfd1 {[%emt 0:00:12]} Rd8 {[%emt 0:06:24]} 15. b4 {[%emt 0:07:24]} O-O {[%emt 0:06:41]} 16. Qb3 {[%emt 0:00:27]} Rc8 {[%emt 0:06:10]} 17. Rd4 {[%emt 0:08:42]} Rfe8 {[%emt 0:08:57]} 18. a4 {[%emt 0:05:04]} Bf8 {[%emt 0:17:57]} 19. Bg3 {[%emt 0:02:05]} e5 {[%emt 0:00:55]} 20. R4d2 {[%emt 0:00:09]} Ne4 {[%emt 0:06:57]} 21. Nxe4 {[%emt 0:03:58]} Bxe4 {[%emt 0:00:04]} 22. Ne1 {[%emt 0:00:41]} a5 {[%emt 0:01:50]} 23. Bg4 {[%emt 0:02:39]} Rcd8 {[%emt 0:01:13]} 24. b5 {[%emt 0:05:54]} Nf6 {[%emt 0:01:41]} 25. Bf3 {[%emt 0:01:43]} Rc8 {[%emt 0:03:12]} 26. Bxe4 {[%emt 0:01:40]} Nxe4 {[%emt 0:00:02]} 27. Rc2 {[%emt 0:00:05]} Nc5 {[%emt 0:02:28]} 28. Qa2 {[%emt 0:00:02]} e4 {[%emt 0:00:36]} 29. Rd5 {[%emt 0:02:52]} Re6 {[%emt 0:00:56]} 30. h4 {[%emt 0:00:37]} Nd7 {[%emt 0:02:07]} 31. Rc1 {[%emt 0:03:48]} Nf6 {[%emt 0:01:10]} 32. Rd4 {[%emt 0:00:10]} Qc5 {[%emt 0:01:17]} 33. Nc2 {[%emt 0:02:04]} Ree8 {[%emt 0:02:17]} 34. Qb2 {[%emt 0:06:03]} d5 {[%emt 0:02:00]} 35. cxd5 {[%emt 0:01:30]} Nxd5 {[%emt 0:00:15]} 36. Rcd1 {[%emt 0:00:14]} Nc3 {[%emt 0:00:57]} 37. R1d2 {[%emt 0:00:03]} Be7 {[%emt 0:00:32]} 38. Qb3 {[%emt 0:03:46]} Qh5 {[%emt 0:02:53]} 39. Rd7 {[%emt 0:00:29]} Bf6 {[%emt 0:02:04]} 40. Bc7 {[%emt 0:00:00]} Bxh4 {[%emt 0:00:00]} 41. Qxc3 {[%emt 0:02:06]} Bf6 {[%emt 0:03:19]} 42. Qc6 {[%emt 0:08:17]} Be5 {[%emt 0:00:46]} 43. g3 {[%emt 0:01:59]} Qg4 {[%emt 0:04:05]} 44. Qd5 {[%emt 0:03:17]} 1-0

[Event "FIDE Womens Grand Prix 2019-20"]
[Site "Skolkovo"]
[Date "2019.09.20"]
[Round "9.6"]
[White "Kosteniuk, Alexandra"]
[Black "Goryachkina, Aleksandra"]
[Result "0-1"]
[ECO "C18"]
[WhiteElo "2495"]
[BlackElo "2564"]
[Annotator "ChessBase"]
[PlyCount "90"]
[EventDate "2019.09.11"]
[EventType "tourn"]
[EventCountry "RUS"]
[SourceTitle "playchess.com"]
[Source "ChessBase"]
[SourceQuality "1"]
[TimeControl "40/5400+30:1800+30"]

1. e4 {[%emt 0:00:00]} e6 {[%emt 0:00:00]} 2. d4 {[%emt 0:00:00]} d5 {[%emt 0:00:00]} 3. Nc3 {[%emt 0:00:00]} Bb4 {[%emt 0:00:10]} 4. e5 {[%emt 0:00:00]} c5 {[%emt 0:00:17]} 5. a3 {[%emt 0:00:06]} Bxc3+ {[%emt 0:00:11]} 6. bxc3 {[%emt 0:00:07]} Ne7 {[%emt 0:01:06]} 7. Qg4 {[%emt 0:01:33]} cxd4 {[%emt 0:01:12]} 8. Bd3 {[%emt 0:00:17]} Qa5 {[%emt 0:02:25]} 9. Rb1 {[%emt 0:00:12]} Ng6 {[%emt 0:01:52]} 10. Nf3 {[%emt 0:02:11]} b6 {[%emt 0:02:49]} 11. O-O {[%emt 0:18:51]} Qxc3 {[%emt 0:11:56]} 12. h4 {[%emt 0:03:22]} h5 {[%emt 0:15:48]} 13. Qg3 {[%emt 0:04:01]} Qc7 {[%emt 0:05:47]} 14. Bxg6 {[%emt 0:18:12]} fxg6 {[%emt 0:00:06]} 15. Nxd4 {[%emt 0:00:17]} O-O {[%emt 0:04:09]} 16. Nb5 {[%emt 0:12:44]} Qxc2 {[%emt 0:03:20]} 17. Bg5 {[%emt 0:03:29]} Na6 {[%emt 0:05:48]} 18. Rfc1 {[%emt 0:05:24]} Qa4 {[%emt 0:02:27]} 19. Nd6 {[%emt 0:05:45]} Bd7 {[%emt 0:08:49]} 20. Be7 {[%emt 0:02:49]} Rf4 {[%emt 0:01:30]} 21. Qxg6 {[%emt 0:00:46]} Qd4 {[%emt 0:03:06]} 22. Qg3 {[%emt 0:04:06]} Rg4 {[%emt 0:03:06]} 23. Qf3 {[%emt 0:00:07]} Qf4 {[%emt 0:03:39]} 24. Qe2 {[%emt 0:00:25]} Nc5 {[%emt 0:00:57]} 25. Rc3 {[%emt 0:05:14]} d4 {[%emt 0:02:36]} 26. Rxc5 {[%emt 0:08:15]} bxc5 {[%emt 0:00:24]} 27. Bg5 {[%emt 0:00:07]} Rxg5 {[%emt 0:03:43]} 28. hxg5 {[%emt 0:00:02]} Qxg5 {[%emt 0:01:09]} 29. Qe4 {[%emt 0:00:16]} Rf8 {[%emt 0:01:53]} 30. Rb7 {[%emt 0:00:07]} Ba4 {[%emt 0:01:19]} 31. Rc7 {[%emt 0:04:12]} Qc1+ {[%emt 0:02:00]} 32. Kh2 {[%emt 0:00:04]} Qf4+ {[%emt 0:01:11]} 33. g3 {[%emt 0:02:17]} Qxf2+ {[%emt 0:00:32]} 34. Kh3 {[%emt 0:00:03]} Bc2 {[%emt 0:01:44]} 35. Qg2 {[%emt 0:00:57]} Bf5+ {[%emt 0:01:39]} 36. Kh2 {[%emt 0:00:10]} Bg4 {[%emt 0:02:51]} 37. Qxf2 {[%emt 0:00:54]} Rxf2+ {[%emt 0:00:01]} 38. Kg1 {[%emt 0:00:05]} Rc2 {[%emt 0:02:10]} 39. Ne4 {[%emt 0:00:18]} d3 {[%emt 0:01:11]} 40. Rd7 {[%emt 0:00:00]} c4 {[%emt 0:00:00]} 41. a4 {[%emt 0:01:24]} Bf5 {[%emt 0:02:58]} 42. Ng5 {[%emt 0:00:17]} Kf8 {[%emt 0:00:27]} 43. Rb7 {[%emt 0:00:07]} d2 {[%emt 0:01:29]} 44. Rb8+ {[%emt 0:00:04]} Ke7 {[%emt 0:00:03]} 45. Rb7+ {[%emt 0:00:04]} Ke8 0-1

[Event "FIDE Womens Grand Prix 2019-20"]
[Site "Skolkovo"]
[Date "2019.09.21"]
[Round "10.1"]
[White "Ju, Wenjun"]
[Black "Goryachkina, Aleksandra"]
[Result "1/2-1/2"]
[ECO "A20"]
[WhiteElo "2576"]
[BlackElo "2564"]
[Annotator "ChessBase"]
[PlyCount "120"]
[EventDate "2019.09.11"]
[EventType "tourn"]
[EventCountry "RUS"]
[SourceTitle "playchess.com"]
[Source "ChessBase"]
[SourceQuality "1"]
[TimeControl "40/5400+30:1800+30"]

1. c4 e5 {[%emt 0:00:32]} 2. g3 {[%emt 0:00:00]} c6 {[%emt 0:01:57]} 3. Nf3 {[%emt 0:00:17]} e4 {[%emt 0:03:16]} 4. Nd4 {[%emt 0:00:05]} d5 {[%emt 0:00:42]} 5. cxd5 {[%emt 0:00:58]} Qxd5 {[%emt 0:00:45]} 6. Nc2 {[%emt 0:00:13]} Nf6 {[%emt 0:01:22]} 7. Nc3 {[%emt 0:10:04]} Qe5 {[%emt 0:00:17]} 8. Bg2 {[%emt 0:01:09]} Na6 {[%emt 0:01:03]} 9. O-O {[%emt 0:00:43]} Be7 {[%emt 0:01:38]} 10. d3 {[%emt 0:03:29]} exd3 {[%emt 0:00:31]} 11. Qxd3 {[%emt 0:00:04]} O-O {[%emt 0:04:50]} 12. e4 {[%emt 0:04:23]} Qh5 {[%emt 0:04:44]} 13. Qd1 {[%emt 0:07:29]} Bg4 {[%emt 0:07:00]} 14. f3 {[%emt 0:00:06]} Rad8 {[%emt 0:01:56]} 15. Qe2 {[%emt 0:00:36]} Bh3 {[%emt 0:05:13]} 16. Be3 {[%emt 0:32:26]} Bc5 {[%emt 0:03:46]} 17. Rad1 {[%emt 0:00:27]} Bxg2 {[%emt 0:08:50]} 18. Kxg2 {[%emt 0:00:06]} Nc7 {[%emt 0:05:25]} 19. Nd4 {[%emt 0:08:19]} Bxd4 {[%emt 0:10:51]} 20. Bxd4 {[%emt 0:01:35]} c5 {[%emt 0:02:08]} 21. g4 {[%emt 0:07:18]} Qg5 {[%emt 0:03:15]} 22. f4 {[%emt 0:01:31]} Qxg4+ {[%emt 0:09:28]} 23. Qxg4 {[%emt 0:00:04]} Nxg4 {[%emt 0:00:06]} 24. Bxc5 {[%emt 0:00:02]} Rxd1 {[%emt 0:05:35]} 25. Rxd1 {[%emt 0:00:04]} Ne6 {[%emt 0:01:18]} 26. Bxa7 {[%emt 0:00:45]} f5 {[%emt 0:00:28]} 27. Kg3 {[%emt 0:02:06]} h5 {[%emt 0:01:07]} 28. exf5 {[%emt 0:05:55]} Rxf5 {[%emt 0:00:15]} 29. Nd5 {[%emt 0:00:16]} Kf7 {[%emt 0:01:48]} 30. h3 {[%emt 0:01:59]} Nf6 {[%emt 0:00:29]} 31. Nxf6 {[%emt 0:00:06]} Kxf6 {[%emt 0:00:02]} 32. Be3 {[%emt 0:03:23]} Rb5 {[%emt 0:05:09]} 33. b3 {[%emt 0:00:05]} Ke7 {[%emt 0:00:44]} 34. Kf3 {[%emt 0:01:24]} g5 {[%emt 0:01:41]} 35. fxg5 {[%emt 0:03:11]} Nxg5+ {[%emt 0:00:04]} 36. Bxg5+ {[%emt 0:00:25]} Rxg5 {[%emt 0:00:02]} 37. Rd4 {[%emt 0:00:47]} Ke6 {[%emt 0:04:23]} 38. h4 {[%emt 0:02:49]} Ra5 {[%emt 0:00:59]} 39. a4 {[%emt 0:02:11]} b5 {[%emt 0:02:34]} 40. axb5 {[%emt 0:00:00]} Rxb5 {[%emt 0:00:00]} 41. b4 {[%emt 0:00:05]} Rf5+ {[%emt 0:06:40]} 42. Ke2 {[%emt 0:01:19]} Ke5 {[%emt 0:03:54]} 43. Rc4 {[%emt 0:00:26]} Kd6 {[%emt 0:00:50]} 44. Ke3 {[%emt 0:03:21]} Rf1 {[%emt 0:02:13]} 45. Ke4 {[%emt 0:00:44]} Rf2 {[%emt 0:05:59]} 46. Rd4+ {[%emt 0:07:49]} Kc6 {[%emt 0:01:35]} 47. Ke5 {[%emt 0:00:10]} Kb5 {[%emt 0:04:05]} 48. Rf4 {[%emt 0:00:11]} Rg2 {[%emt 0:02:40]} 49. Kf6 {[%emt 0:01:00]} Rg1 {[%emt 0:07:33]} 50. Rf5+ {[%emt 0:01:21]} Kxb4 {[%emt 0:00:02]} 51. Rxh5 {[%emt 0:00:04]} Rh1 {[%emt 0:01:32]} 52. Rh8 {[%emt 0:01:49]} Rf1+ {[%emt 0:00:50]} 53. Ke5 {[%emt 0:05:39]} Re1+ {[%emt 0:00:11]} 54. Kf4 {[%emt 0:05:37]} Rf1+ {[%emt 0:00:22]} 55. Kg3 {[%emt 0:03:41]} Kc5 {[%emt 0:00:26]} 56. h5 {[%emt 0:04:24]} Rh1 {[%emt 0:00:20]} 57. Kg4 {[%emt 0:00:35]} Kd6 {[%emt 0:00:40]} 58. h6 {[%emt 0:02:18]} Ke7 {[%emt 0:00:22]} 59. h7 {[%emt 0:00:28]} Kf7 {[%emt 0:00:05]} 60. Ra8 {[%emt 0:00:15]} Rxh7 {[%emt 0:00:07]} 1/2-1/2

[Event "FIDE Womens Grand Prix 2019-20"]
[Site "Skolkovo"]
[Date "2019.09.21"]
[Round "10.2"]
[White "Cramling, Pia"]
[Black "Kosteniuk, Alexandra"]
[Result "0-1"]
[ECO "E04"]
[WhiteElo "2487"]
[BlackElo "2495"]
[Annotator "ChessBase"]
[PlyCount "68"]
[EventDate "2019.09.11"]
[EventType "tourn"]
[EventCountry "RUS"]
[SourceTitle "playchess.com"]
[Source "ChessBase"]
[SourceQuality "1"]
[TimeControl "40/5400+30:1800+30"]

1. Nf3 {[%emt 0:00:00]} d5 {[%emt 0:00:00]} 2. d4 {[%emt 0:00:00]} Nf6 {[%emt 0:00:00]} 3. c4 {[%emt 0:00:06]} e6 {[%emt 0:00:00]} 4. g3 {[%emt 0:00:10]} dxc4 {[%emt 0:00:00]} 5. Bg2 {[%emt 0:00:08]} a6 {[%emt 0:00:14]} 6. O-O {[%emt 0:00:33]} Nc6 {[%emt 0:00:05]} 7. e3 {[%emt 0:00:12]} Rb8 {[%emt 0:00:09]} 8. Qe2 {[%emt 0:00:45]} b5 {[%emt 0:00:13]} 9. b3 {[%emt 0:00:11]} cxb3 {[%emt 0:00:06]} 10. axb3 {[%emt 0:00:04]} Bd6 {[%emt 0:00:10]} 11. Bd2 {[%emt 0:00:26]} O-O {[%emt 0:00:15]} 12. Rc1 {[%emt 0:00:11]} Rb6 {[%emt 0:00:07]} 13. Ne1 {[%emt 0:10:38]} Bb7 {[%emt 0:00:53]} 14. Nd3 {[%emt 0:00:50]} Qa8 {[%emt 0:00:09]} 15. Qf1 {[%emt 0:07:01]} Ne7 {[%emt 0:01:11]} 16. Ba5 {[%emt 0:03:34]} Bxg2 {[%emt 0:00:51]} 17. Qxg2 {[%emt 0:00:06]} Rc6 {[%emt 0:09:03]} 18. Nd2 {[%emt 0:02:30]} Rxc1+ {[%emt 0:06:58]} 19. Rxc1 {[%emt 0:00:25]} Qa7 {[%emt 0:01:04]} 20. Nc5 {[%emt 0:14:04]} c6 {[%emt 0:07:16]} 21. Nde4 {[%emt 0:10:27]} Nxe4 {[%emt 0:00:44]} 22. Qxe4 {[%emt 0:06:05]} Nd5 {[%emt 0:10:16]} 23. Qg4 {[%emt 0:08:14]} Qe7 {[%emt 0:03:55]} 24. Qd1 {[%emt 0:06:11]} f5 {[%emt 0:08:02]} 25. Nxa6 {[%emt 0:09:27]} f4 {[%emt 0:01:30]} 26. exf4 {[%emt 0:00:12]} Nxf4 {[%emt 0:00:59]} 27. Be1 {[%emt 0:00:40]} Qg5 {[%emt 0:00:25]} 28. Rc2 {[%emt 0:00:53]} Nh3+ {[%emt 0:10:00]} 29. Kg2 {[%emt 0:00:18]} Qd5+ {[%emt 0:01:07]} 30. f3 {[%emt 0:04:19]} Ng5 {[%emt 0:06:00]} 31. Rf2 {[%emt 0:00:10]} c5 {[%emt 0:01:29]} 32. Bd2 {[%emt 0:06:47]} Qxd4 {[%emt 0:09:37]} 33. Qe2 {[%emt 0:00:37]} Nf7 {[%emt 0:00:06]} 34. Qxe6 {[%emt 0:02:56]} Qa1 {[%emt 0:00:13]} 0-1

[Event "FIDE Womens Grand Prix 2019-20"]
[Site "Skolkovo"]
[Date "2019.09.21"]
[Round "10.3"]
[White "Stefanova, Antoaneta"]
[Black "Kashlinskaya, Alina"]
[Result "0-1"]
[ECO "D25"]
[WhiteElo "2491"]
[BlackElo "2487"]
[Annotator "ChessBase"]
[PlyCount "60"]
[EventDate "2019.09.11"]
[EventType "tourn"]
[EventCountry "RUS"]
[SourceTitle "playchess.com"]
[Source "ChessBase"]
[SourceQuality "1"]
[TimeControl "40/5400+30:1800+30"]

1. d4 {[%emt 0:00:00]} d5 {[%emt 0:00:00]} 2. c4 {[%emt 0:00:00]} dxc4 {[%emt 0:00:00]} 3. Nf3 {[%emt 0:04:13]} Nf6 {[%emt 0:00:00]} 4. e3 {[%emt 0:00:23]} Bg4 {[%emt 0:00:08]} 5. Bxc4 {[%emt 0:12:03]} e6 {[%emt 0:00:09]} 6. h3 {[%emt 0:09:20]} Bh5 {[%emt 0:00:36]} 7. Qb3 {[%emt 0:05:09]} Bxf3 {[%emt 0:02:37]} 8. gxf3 {[%emt 0:00:04]} c5 {[%emt 0:02:40]} 9. Qxb7 {[%emt 0:07:06]} Nbd7 {[%emt 0:00:40]} 10. d5 {[%emt 0:08:37]} Rb8 {[%emt 0:06:42]} 11. Qxa7 {[%emt 0:01:30]} exd5 {[%emt 0:00:26]} 12. Be2 {[%emt 0:00:15]} c4 {[%emt 0:08:40]} 13. Qd4 {[%emt 0:09:28]} Bc5 {[%emt 0:02:26]} 14. Qh4 {[%emt 0:02:03]} O-O {[%emt 0:00:56]} 15. Rg1 {[%emt 0:02:40]} Re8 {[%emt 0:01:48]} 16. Nd2 {[%emt 0:09:18]} Qa5 {[%emt 0:04:17]} 17. a3 {[%emt 0:17:43]} c3 {[%emt 0:16:02]} 18. b4 {[%emt 0:00:05]} Qa4 {[%emt 0:12:14]} 19. Bd1 {[%emt 0:05:04]} c2 {[%emt 0:01:32]} 20. Be2 {[%emt 0:00:01]} Rxb4 {[%emt 0:03:02]} 21. axb4 {[%emt 0:02:14]} Qxa1 {[%emt 0:00:10]} 22. Nb3 {[%emt 0:00:06]} Qc3+ {[%emt 0:03:21]} 23. Kf1 {[%emt 0:00:05]} Bxb4 {[%emt 0:04:59]} 24. Nd4 {[%emt 0:00:21]} g6 {[%emt 0:00:31]} 25. f4 {[%emt 0:03:00]} Bc5 {[%emt 0:05:06]} 26. Nf5 {[%emt 0:01:18]} d4 {[%emt 0:02:07]} 27. exd4 {[%emt 0:00:41]} Bxd4 {[%emt 0:01:24]} 28. Qh6 {[%emt 0:00:23]} Ne4 {[%emt 0:00:56]} 29. Nxd4 {[%emt 0:00:38]} Qxd4 {[%emt 0:00:10]} 30. Qh4 {[%emt 0:00:07]} Nd2+ {[%emt 0:00:31]} 0-1

[Event "FIDE Womens Grand Prix 2019-20"]
[Site "Skolkovo"]
[Date "2019.09.21"]
[Round "10.4"]
[White "Paehtz, Elisabeth"]
[Black "Sebag, Marie"]
[Result "1/2-1/2"]
[ECO "B51"]
[WhiteElo "2479"]
[BlackElo "2450"]
[Annotator "ChessBase"]
[PlyCount "64"]
[EventDate "2019.09.11"]
[EventType "tourn"]
[EventCountry "RUS"]
[SourceTitle "playchess.com"]
[Source "ChessBase"]
[SourceQuality "1"]
[TimeControl "40/5400+30:1800+30"]

1. e4 {[%emt 0:00:00]} c5 {[%emt 0:00:00]} 2. Nf3 {[%emt 0:00:00]} d6 {[%emt 0:00:00]} 3. Bb5+ {[%emt 0:00:00]} Nd7 {[%emt 0:00:33]} 4. Ba4 {[%emt 0:00:00]} Ngf6 {[%emt 0:02:19]} 5. O-O {[%emt 0:00:00]} a6 {[%emt 0:01:13]} 6. c4 {[%emt 0:00:00]} e6 {[%emt 0:01:34]} 7. Nc3 {[%emt 0:00:00]} Be7 {[%emt 0:03:39]} 8. d3 {[%emt 0:02:00]} O-O {[%emt 0:01:21]} 9. h3 {[%emt 0:06:17]} Qc7 {[%emt 0:05:05]} 10. Bf4 {[%emt 0:00:14]} b6 {[%emt 0:02:44]} 11. Qe2 {[%emt 0:10:49]} Bb7 {[%emt 0:04:03]} 12. Bh2 {[%emt 0:01:54]} Rac8 {[%emt 0:02:36]} 13. Nd2 {[%emt 0:05:04]} Ne5 {[%emt 0:03:35]} 14. f4 {[%emt 0:00:55]} Nc6 {[%emt 0:00:10]} 15. Nf3 {[%emt 0:01:34]} Nd7 {[%emt 0:08:01]} 16. Rae1 {[%emt 0:07:27]} Nd4 {[%emt 0:03:48]} 17. Nxd4 {[%emt 0:06:37]} cxd4 {[%emt 0:04:24]} 18. Nb1 {[%emt 0:00:02]} b5 {[%emt 0:04:12]} 19. cxb5 {[%emt 0:01:04]} Nc5 {[%emt 0:01:00]} 20. Bd1 {[%emt 0:01:19]} Qa5 {[%emt 0:10:14]} 21. Na3 {[%emt 0:07:33]} axb5 {[%emt 0:02:22]} 22. f5 {[%emt 0:02:15]} e5 {[%emt 0:02:04]} 23. f6 {[%emt 0:00:21]} Bxf6 {[%emt 0:06:20]} 24. Rxf6 {[%emt 0:00:05]} gxf6 {[%emt 0:00:06]} 25. Rf1 {[%emt 0:03:09]} Kh8 {[%emt 0:12:49]} 26. Bg3 {[%emt 0:26:27]} Rg8 {[%emt 0:01:04]} 27. Bh4 {[%emt 0:00:03]} Nd7 {[%emt 0:01:30]} 28. Qf2 {[%emt 0:01:41]} Rc1 {[%emt 0:07:05]} 29. Bxf6+ {[%emt 0:01:47]} Nxf6 {[%emt 0:00:05]} 30. Qxf6+ {[%emt 0:00:03]} Rg7 {[%emt 0:00:04]} 31. Nxb5 {[%emt 0:02:55]} Qxb5 {[%emt 0:01:09]} 32. Qd8+ {[%emt 0:00:03]} Rg8 1/2-1/2

[Event "FIDE Womens Grand Prix 2019-20"]
[Site "Skolkovo"]
[Date "2019.09.21"]
[Round "10.5"]
[White "Gunina, Valentina"]
[Black "Harika, Dronavalli"]
[Result "1-0"]
[ECO "D59"]
[WhiteElo "2502"]
[BlackElo "2503"]
[Annotator "ChessBase"]
[PlyCount "105"]
[EventDate "2019.09.11"]
[EventType "tourn"]
[EventCountry "RUS"]
[SourceTitle "playchess.com"]
[Source "ChessBase"]
[SourceQuality "1"]
[TimeControl "40/5400+30:1800+30"]

1. d4 {[%emt 0:00:00]} d5 {[%emt 0:00:11]} 2. c4 {[%emt 0:00:00]} e6 {[%emt 0:00:10]} 3. Nf3 {[%emt 0:00:06]} Nf6 {[%emt 0:00:10]} 4. Nc3 {[%emt 0:00:23]} Be7 {[%emt 0:00:26]} 5. Bg5 {[%emt 0:00:31]} h6 {[%emt 0:00:35]} 6. Bh4 {[%emt 0:02:12]} O-O {[%emt 0:00:26]} 7. e3 {[%emt 0:00:11]} b6 {[%emt 0:00:31]} 8. cxd5 {[%emt 0:02:50]} Nxd5 {[%emt 0:00:29]} 9. Bxe7 {[%emt 0:00:33]} Qxe7 {[%emt 0:00:16]} 10. Nxd5 {[%emt 0:00:19]} exd5 {[%emt 0:00:08]} 11. Rc1 {[%emt 0:00:15]} Be6 {[%emt 0:00:17]} 12. Bd3 {[%emt 0:01:24]} c5 {[%emt 0:01:06]} 13. dxc5 {[%emt 0:02:04]} bxc5 {[%emt 0:01:10]} 14. O-O {[%emt 0:02:03]} Nd7 {[%emt 0:00:29]} 15. Qa4 {[%emt 0:01:28]} Rfb8 {[%emt 0:14:18]} 16. Bb5 {[%emt 0:07:35]} a5 {[%emt 0:22:45]} 17. Rfd1 {[%emt 0:02:02]} Ra7 {[%emt 0:13:48]} 18. b3 {[%emt 0:05:27]} c4 {[%emt 0:02:40]} 19. bxc4 {[%emt 0:04:44]} Nb6 {[%emt 0:00:04]} 20. Qc2 {[%emt 0:01:15]} Nxc4 {[%emt 0:01:08]} 21. Nd4 {[%emt 0:04:16]} Na3 {[%emt 0:01:03]} 22. Qd3 {[%emt 0:03:13]} Nxb5 {[%emt 0:00:25]} 23. Nxb5 {[%emt 0:01:21]} Rab7 {[%emt 0:01:39]} 24. Nd4 {[%emt 0:00:05]} Bd7 {[%emt 0:11:02]} 25. h3 {[%emt 0:03:01]} a4 {[%emt 0:02:36]} 26. a3 {[%emt 0:03:35]} Rb2 {[%emt 0:06:51]} 27. Rc2 {[%emt 0:09:22]} Qf6 {[%emt 0:07:46]} 28. Rdc1 {[%emt 0:06:49]} g6 {[%emt 0:01:00]} 29. Qc3 {[%emt 0:00:45]} Rxc2 {[%emt 0:00:10]} 30. Rxc2 {[%emt 0:01:03]} Qd6 {[%emt 0:01:00]} 31. Rc1 {[%emt 0:02:32]} Rc8 {[%emt 0:00:34]} 32. Qa1 {[%emt 0:01:07]} Rc4 {[%emt 0:03:00]} 33. Rd1 {[%emt 0:02:16]} Rc8 {[%emt 0:01:00]} 34. Ne2 {[%emt 0:03:13]} Bb5 {[%emt 0:01:57]} 35. Nf4 {[%emt 0:00:32]} Bc4 {[%emt 0:00:03]} 36. Nxd5 {[%emt 0:02:08]} Bxd5 {[%emt 0:00:13]} 37. e4 {[%emt 0:00:10]} Rc5 {[%emt 0:01:54]} 38. Qd4 {[%emt 0:00:43]} Rc8 {[%emt 0:00:24]} 39. exd5 {[%emt 0:00:07]} Qxa3 {[%emt 0:00:03]} 40. d6 {[%emt 0:00:00]} Qb3 {[%emt 0:00:00]} 41. d7 {[%emt 0:03:33]} Rd8 {[%emt 0:01:10]} 42. Re1 {[%emt 0:00:22]} Qb5 {[%emt 0:20:49]} 43. Re7 {[%emt 0:00:37]} a3 {[%emt 0:00:52]} 44. Qf6 {[%emt 0:00:33]} Qb1+ {[%emt 0:00:08]} 45. Kh2 {[%emt 0:00:04]} Qb8+ {[%emt 0:00:02]} 46. g3 {[%emt 0:01:49]} Rf8 {[%emt 0:00:03]} 47. Rxf7 {[%emt 0:01:16]} Rxf7 {[%emt 0:00:06]} 48. d8=Q+ {[%emt 0:00:12]} Qxd8 {[%emt 0:00:03]} 49. Qxd8+ {[%emt 0:00:08]} Kh7 {[%emt 0:00:31]} 50. Kg2 {[%emt 0:00:38]} Ra7 51. Qb6 {[%emt 0:00:17]} Ra4 {[%emt 0:00:38]} 52. Qc7+ {[%emt 0:00:07]} Kg8 {[%emt 0:00:08]} 53. Qd8+ {[%emt 0:00:05]} 1-0

[Event "FIDE Womens Grand Prix 2019-20"]
[Site "Skolkovo"]
[Date "2019.09.21"]
[Round "10.6"]
[White "Lagno, Kateryna"]
[Black "Koneru, Humpy"]
[Result "1/2-1/2"]
[ECO "C42"]
[WhiteElo "2545"]
[BlackElo "2560"]
[Annotator "ChessBase"]
[PlyCount "46"]
[EventDate "2019.09.11"]
[EventType "tourn"]
[EventCountry "RUS"]
[SourceTitle "playchess.com"]
[Source "ChessBase"]
[SourceQuality "1"]
[TimeControl "40/5400+30:1800+30"]

1. e4 {[%emt 0:00:00]} e5 {[%emt 0:00:00]} 2. Nf3 {[%emt 0:00:00]} Nf6 {[%emt 0:00:00]} 3. Nxe5 {[%emt 0:00:05]} d6 {[%emt 0:00:00]} 4. Nf3 {[%emt 0:00:04]} Nxe4 {[%emt 0:00:00]} 5. d4 {[%emt 0:00:03]} d5 {[%emt 0:00:15]} 6. Bd3 {[%emt 0:00:06]} Bf5 {[%emt 0:00:15]} 7. O-O {[%emt 0:00:21]} Be7 {[%emt 0:00:12]} 8. Re1 {[%emt 0:00:08]} O-O {[%emt 0:00:23]} 9. c4 {[%emt 0:00:34]} Nc6 {[%emt 0:00:24]} 10. cxd5 {[%emt 0:00:21]} Qxd5 {[%emt 0:00:09]} 11. Nc3 {[%emt 0:00:05]} Nxc3 {[%emt 0:00:11]} 12. bxc3 {[%emt 0:00:04]} Rae8 {[%emt 0:00:31]} 13. Bf4 {[%emt 0:00:22]} Bd8 {[%emt 0:00:09]} 14. Be2 {[%emt 0:00:21]} Be4 {[%emt 0:00:19]} 15. Qd2 {[%emt 0:00:43]} Qa5 {[%emt 0:26:34]} 16. Rad1 {[%emt 0:11:51]} Be7 {[%emt 0:10:13]} 17. Be3 {[%emt 0:32:08]} h6 {[%emt 0:23:54]} 18. Qb2 {[%emt 0:02:48]} Ba3 {[%emt 0:06:46]} 19. Qb3 {[%emt 0:00:52]} Bd5 {[%emt 0:00:11]} 20. Qc2 {[%emt 0:06:48]} Be4 {[%emt 0:00:09]} 21. Qb3 {[%emt 0:00:38]} Bd5 {[%emt 0:00:06]} 22. Qc2 {[%emt 0:06:12]} Be4 {[%emt 0:00:04]} 23. Qb3 {[%emt 0:00:02]} Bd5 {[%emt 0:00:06]} 1/2-1/2